[Event "Skalica Rapid 2020"]
[Site "Skalica"]
[Date "2020.08.29"]
[Round "5.3"]
[White "Vadila, Ondrej"]
[Black "Meszaros, Casey Ryan"]
[Result "1-0"]
[ECO "C45"]
[WhiteElo "2057"]
[BlackElo "1478"]
[Annotator "ChessBase"]
[PlyCount "71"]
[EventDate "2020.08.29"]
[EventType "swiss"]
[EventCountry "SVK"]
[SourceTitle "playchess.com"]
[Source "ChessBase"]
[SourceQuality "1"]
[TimeControl "600+5"]

1. e4 {[%emt 0:00:02]} e5 {[%emt 0:00:00]} 2. Nf3 {[%emt 0:00:03]} Nc6 {[%emt 0:00:00]} 3. d4 {[%emt 0:00:01]} exd4 {[%emt 0:00:00]} 4. Nxd4 {[%emt 0:00:02]} Bc5 {[%emt 0:00:01]} 5. Nb3 {[%emt 0:00:01]} Bb6 {[%emt 0:00:01]} 6. Nc3 {[%emt 0:00:02]} d6 {[%emt 0:00:04]} 7. Qe2 {[%emt 0:00:03]} Nf6 {[%emt 0:00:05]} 8. Be3 {[%emt 0:00:02]} O-O {[%emt 0:00:15]} 9. O-O-O {[%emt 0:00:04]} Bxe3+ {[%emt 0:00:07]} 10. Qxe3 {[%emt 0:00:01]} a5 {[%emt 0:00:05]} 11. f3 {[%emt 0:00:25]} a4 {[%emt 0:00:13]} 12. Nd4 {[%emt 0:00:02]} a3 {[%emt 0:00:16]} 13. b3 {[%emt 0:00:01]} Re8 {[%emt 0:00:29]} 14. g4 {[%emt 0:00:22]} Ne5 {[%emt 0:00:33]} 15. Be2 {[%emt 0:00:26]} c6 {[%emt 0:00:19]} 16. h3 {[%emt 0:00:21]} b5 {[%emt 0:00:58]} 17. g5 {[%emt 0:00:04]} Nh5 {[%emt 0:00:14]} 18. f4 {[%emt 0:00:05]} b4 {[%emt 0:00:12]} 19. fxe5 {[%emt 0:00:06]} bxc3 {[%emt 0:00:05]} 20. Bxh5 {[%emt 0:00:03]} dxe5 {[%emt 0:00:19]} 21. Nxc6 {[%emt 0:00:12]} Qc7 {[%emt 0:00:12]} 22. Nb4 {[%emt 0:00:15]} Bb7 {[%emt 0:00:35]} 23. Nd5 {[%emt 0:00:13]} Bxd5 {[%emt 0:00:02]} 24. Rxd5 {[%emt 0:00:02]} Rad8 {[%emt 0:00:18]} 25. Rhd1 {[%emt 0:00:08]} Rxd5 {[%emt 0:00:06]} 26. Rxd5 {[%emt 0:00:02]} Qc6 {[%emt 0:00:39]} 27. Qc5 {[%emt 0:00:20]} Qa6 {[%emt 0:00:13]} 28. Rd3 {[%emt 0:00:09]} Qe6 {[%emt 0:00:14]} 29. Qxc3 {[%emt 0:00:55]} f6 {[%emt 0:00:07]} 30. Bxe8 {[%emt 0:00:06]} Qxe8 {[%emt 0:00:05]} 31. Qc7 {[%emt 0:00:04]} fxg5 {[%emt 0:00:06]} 32. Rd8 {[%emt 0:00:02]} Qxd8 {[%emt 0:00:02]} 33. Qxd8+ {[%emt 0:00:02]} Kf7 {[%emt 0:00:01]} 34. Qxg5 {[%emt 0:00:02]} h6 {[%emt 0:00:01]} 35. Qxe5 {[%emt 0:00:04]} Kg6 {[%emt 0:00:00]} 36. Qf5# 1-0

[Event "Skalica Rapid 2020"]
[Site "Skalica"]
[Date "2020.08.29"]
[Round "5.3"]
[White "Pniaczek, Marek"]
[Black "Manik Mikulas"]
[Result "1/2-1/2"]
[ECO "B51"]
[WhiteElo "1969"]
[BlackElo "2313"]
[Annotator "ChessBase"]
[PlyCount "51"]
[EventDate "2020.08.29"]
[EventType "swiss"]
[EventCountry "SVK"]
[SourceTitle "playchess.com"]
[Source "ChessBase"]
[SourceQuality "1"]
[TimeControl "600+5"]

1. e4 {[%emt 0:00:00]} c5 {[%emt 0:01:34]} 2. Nf3 {[%emt 0:00:00]} d6 {[%emt 0:00:02]} 3. Bb5+ {[%emt 0:00:00]} Nd7 {[%emt 0:00:01]} 4. d4 {[%emt 0:00:01]} cxd4 {[%emt 0:00:02]} 5. Qxd4 {[%emt 0:00:02]} a6 {[%emt 0:00:03]} 6. Bxd7+ {[%emt 0:00:01]} Bxd7 {[%emt 0:00:01]} 7. O-O {[%emt 0:00:02]} Rc8 {[%emt 0:00:02]} 8. c4 {[%emt 0:00:01]} e5 {[%emt 0:00:17]} 9. Qd3 {[%emt 0:00:01]} h6 {[%emt 0:00:10]} 10. Nc3 {[%emt 0:00:13]} Nf6 {[%emt 0:00:04]} 11. b3 {[%emt 0:00:18]} Be7 {[%emt 0:00:02]} 12. Ba3 {[%emt 0:00:23]} Qa5 {[%emt 0:00:05]} 13. Bb2 {[%emt 0:00:40]} O-O {[%emt 0:00:17]} 14. Rfd1 {[%emt 0:00:07]} Rfd8 {[%emt 0:00:38]} 15. a4 {[%emt 0:00:44]} Be6 {[%emt 0:00:12]} 16. Ba3 {[%emt 0:00:16]} Bf8 {[%emt 0:00:22]} 17. Rac1 {[%emt 0:00:55]} Qb6 {[%emt 0:00:07]} 18. Rb1 {[%emt 0:00:23]} g6 {[%emt 0:00:27]} 19. h3 {[%emt 0:00:09]} Kg7 {[%emt 0:00:52]} 20. Rd2 {[%emt 0:00:31]} Rd7 {[%emt 0:00:43]} 21. Qc2 {[%emt 0:00:40]} Rdd8 {[%emt 0:00:18]} 22. Rbd1 {[%emt 0:00:08]} Rd7 {[%emt 0:00:14]} 23. Rd3 {[%emt 0:01:03]} Rdd8 {[%emt 0:00:04]} 24. R1d2 {[%emt 0:01:02]} Rd7 {[%emt 0:00:09]} 25. Qd1 {[%emt 0:00:03]} Rcd8 {[%emt 0:00:12]} 26. Qc2 {[%emt 0:00:32]} 1/2-1/2

[Event "Skalica Rapid 2020"]
[Site "Skalica"]
[Date "2020.08.29"]
[Round "5.4"]
[White "Samoun Florent"]
[Black "Kubat, Pavel"]
[Result "1-0"]
[ECO "A01"]
[WhiteElo "2228"]
[BlackElo "2066"]
[Annotator "ChessBase"]
[PlyCount "105"]
[EventDate "2020.08.29"]
[EventType "swiss"]
[EventCountry "SVK"]
[SourceTitle "playchess.com"]
[Source "ChessBase"]
[SourceQuality "1"]
[TimeControl "600+5"]

1. e4 {[%emt 0:00:00]} d6 {[%emt 0:00:00]} 2. Nc3 {[%emt 0:00:04]} Nf6 {[%emt 0:00:07]} 3. b3 {[%emt 0:00:11]} e5 {[%emt 0:00:09]} 4. Bb2 {[%emt 0:00:00]} Be7 {[%emt 0:00:02]} 5. d4 {[%emt 0:00:05]} O-O {[%emt 0:00:27]} 6. Nf3 {[%emt 0:00:08]} Bg4 {[%emt 0:01:18]} 7. dxe5 {[%emt 0:00:45]} Bxf3 {[%emt 0:00:03]} 8. Qxf3 {[%emt 0:00:09]} dxe5 {[%emt 0:00:02]} 9. Rd1 {[%emt 0:00:09]} Nbd7 {[%emt 0:01:28]} 10. Be2 {[%emt 0:04:01]} a6 {[%emt 0:01:22]} 11. O-O {[%emt 0:00:08]} Bd6 {[%emt 0:00:02]} 12. Rfe1 {[%emt 0:00:44]} Qe7 {[%emt 0:00:03]} 13. Bf1 {[%emt 0:00:12]} c6 {[%emt 0:00:11]} 14. Ne2 {[%emt 0:00:17]} Ba3 {[%emt 0:01:31]} 15. Ba1 {[%emt 0:00:29]} Bb4 {[%emt 0:00:06]} 16. c3 {[%emt 0:00:03]} Bc5 {[%emt 0:00:07]} 17. Ng3 {[%emt 0:00:05]} g6 {[%emt 0:00:22]} 18. Bb2 {[%emt 0:00:27]} Ba3 {[%emt 0:00:11]} 19. Bxa3 {[%emt 0:01:04]} Qxa3 {[%emt 0:00:02]} 20. Rd2 {[%emt 0:00:03]} Qe7 {[%emt 0:00:44]} 21. Red1 {[%emt 0:00:14]} Nc5 {[%emt 0:00:02]} 22. b4 {[%emt 0:00:41]} Ne6 {[%emt 0:00:02]} 23. Bc4 {[%emt 0:00:13]} Rad8 {[%emt 0:00:02]} 24. Bxe6 {[%emt 0:00:15]} fxe6 {[%emt 0:00:23]} 25. Qe2 {[%emt 0:00:22]} Rxd2 {[%emt 0:00:27]} 26. Qxd2 {[%emt 0:00:12]} Kg7 {[%emt 0:00:45]} 27. f3 {[%emt 0:00:23]} h5 {[%emt 0:00:12]} 28. Nf1 {[%emt 0:00:18]} h4 {[%emt 0:00:05]} 29. Ne3 {[%emt 0:00:09]} h3 {[%emt 0:00:05]} 30. Qd6 {[%emt 0:00:16]} Qxd6 {[%emt 0:00:32]} 31. Rxd6 {[%emt 0:00:02]} Kf7 {[%emt 0:00:08]} 32. Nc4 {[%emt 0:00:02]} Ke7 {[%emt 0:00:02]} 33. Rd2 {[%emt 0:00:10]} Nd7 {[%emt 0:00:04]} 34. Kf2 {[%emt 0:00:11]} hxg2 {[%emt 0:00:02]} 35. Kxg2 {[%emt 0:00:01]} b5 {[%emt 0:00:41]} 36. Ne3 {[%emt 0:00:03]} Nf6 {[%emt 0:00:05]} 37. c4 {[%emt 0:00:12]} Nh5 {[%emt 0:00:01]} 38. cxb5 {[%emt 0:00:06]} axb5 {[%emt 0:00:01]} 39. Ng4 {[%emt 0:00:03]} Nf4+ {[%emt 0:00:13]} 40. Kg3 {[%emt 0:00:01]} Nh5+ {[%emt 0:00:07]} 41. Kf2 {[%emt 0:00:18]} Nf6 {[%emt 0:00:10]} 42. Nxe5 {[%emt 0:00:04]} Nxe4+ {[%emt 0:00:02]} 43. Ke2 {[%emt 0:00:01]} Nxd2 {[%emt 0:00:02]} 44. Nxg6+ {[%emt 0:00:02]} Kf7 {[%emt 0:00:07]} 45. Nxf8 {[%emt 0:00:01]} Nxf3 {[%emt 0:00:17]} 46. Kxf3 {[%emt 0:00:09]} Kxf8 {[%emt 0:00:01]} 47. Ke4 {[%emt 0:00:02]} Ke7 {[%emt 0:00:39]} 48. Ke5 {[%emt 0:00:02]} Kf7 {[%emt 0:00:04]} 49. h4 {[%emt 0:00:01]} Ke7 {[%emt 0:00:16]} 50. h5 {[%emt 0:00:01]} Kf7 {[%emt 0:00:05]} 51. h6 {[%emt 0:00:02]} Kg6 {[%emt 0:00:02]} 52. Kxe6 {[%emt 0:00:01]} Kxh6 {[%emt 0:00:06]} 53. Kd6 {[%emt 0:00:02]} 1-0

[Event "Skalica Rapid 2020"]
[Site "Skalica"]
[Date "2020.08.29"]
[Round "5.4"]
[White "Chlpek, Daniel"]
[Black "Szucs, Vladimir"]
[Result "1-0"]
[ECO "A16"]
[WhiteElo "1879"]
[BlackElo "2088"]
[Annotator "ChessBase"]
[PlyCount "135"]
[EventDate "2020.08.29"]
[EventType "swiss"]
[EventCountry "SVK"]
[SourceTitle "playchess.com"]
[Source "ChessBase"]
[SourceQuality "1"]
[TimeControl "600+5"]

1. c4 {[%emt 0:00:00]} Nf6 {[%emt 0:00:01]} 2. Nc3 {[%emt 0:00:00]} g6 {[%emt 0:00:02]} 3. d4 {[%emt 0:00:00]} c5 {[%emt 0:00:00]} 4. d5 {[%emt 0:00:01]} Bg7 {[%emt 0:00:02]} 5. h4 {[%emt 0:00:01]} h5 {[%emt 0:00:03]} 6. e4 {[%emt 0:00:02]} d6 {[%emt 0:00:01]} 7. Be2 {[%emt 0:00:01]} Na6 {[%emt 0:00:02]} 8. Bg5 {[%emt 0:00:03]} Nc7 {[%emt 0:00:02]} 9. Qc2 {[%emt 0:00:07]} a6 {[%emt 0:00:01]} 10. a4 {[%emt 0:00:01]} Rb8 {[%emt 0:00:01]} 11. Nh3 {[%emt 0:00:31]} Bd7 {[%emt 0:00:11]} 12. a5 {[%emt 0:00:01]} b5 {[%emt 0:00:05]} 13. axb6 {[%emt 0:00:02]} Rxb6 {[%emt 0:00:01]} 14. Nf4 {[%emt 0:00:16]} Qb8 {[%emt 0:00:12]} 15. Nd3 {[%emt 0:00:02]} O-O {[%emt 0:00:15]} 16. O-O {[%emt 0:00:01]} e6 {[%emt 0:00:09]} 17. Qd2 {[%emt 0:01:03]} exd5 {[%emt 0:00:09]} 18. exd5 {[%emt 0:00:02]} Re8 {[%emt 0:00:09]} 19. Qf4 {[%emt 0:01:09]} Bf5 {[%emt 0:00:28]} 20. f3 {[%emt 0:00:43]} Rxe2 {[%emt 0:00:40]} 21. Nxe2 {[%emt 0:00:05]} Bxd3 {[%emt 0:00:02]} 22. Bxf6 {[%emt 0:00:12]} Bxf6 {[%emt 0:00:27]} 23. Qxf6 {[%emt 0:00:02]} Bxe2 {[%emt 0:00:13]} 24. Rfe1 {[%emt 0:00:00]} Bxc4 {[%emt 0:01:00]} 25. Re7 {[%emt 0:00:55]} Bxd5 {[%emt 0:00:03]} 26. Rae1 {[%emt 0:00:02]} Qd8 {[%emt 0:01:03]} 27. Re8+ {[%emt 0:00:56]} Qxe8 {[%emt 0:00:02]} 28. Rxe8+ {[%emt 0:00:01]} Nxe8 {[%emt 0:00:01]} 29. Qd8 {[%emt 0:00:03]} Rxb2 {[%emt 0:00:18]} 30. Qxe8+ {[%emt 0:00:02]} Kg7 {[%emt 0:00:01]} 31. Qe7 {[%emt 0:00:05]} Rb6 {[%emt 0:00:48]} 32. g4 {[%emt 0:00:06]} hxg4 33. fxg4 {[%emt 0:00:03]} c4 {[%emt 0:01:41]} 34. g5 {[%emt 0:00:01]} Rc6 {[%emt 0:00:20]} 35. Qf6+ {[%emt 0:00:06]} Kh7 {[%emt 0:00:02]} 36. Qd4 {[%emt 0:00:50]} Be6 {[%emt 0:00:31]} 37. h5 {[%emt 0:00:02]} Rc5 {[%emt 0:00:38]} 38. hxg6+ {[%emt 0:00:21]} Kxg6 {[%emt 0:00:17]} 39. Qf6+ {[%emt 0:00:01]} Kh5 {[%emt 0:00:05]} 40. Qh6+ {[%emt 0:00:01]} Kg4 {[%emt 0:00:03]} 41. g6 {[%emt 0:00:01]} Rh5 {[%emt 0:01:12]} 42. Qe3 {[%emt 0:01:21]} Re5 {[%emt 0:00:15]} 43. Qd4+ {[%emt 0:00:01]} Kh5 {[%emt 0:00:14]} 44. g7 {[%emt 0:00:03]} Rg5+ {[%emt 0:00:05]} 45. Kh2 {[%emt 0:00:14]} d5 {[%emt 0:00:25]} 46. Qf6 {[%emt 0:00:29]} Rg4 {[%emt 0:00:09]} 47. Qf3 {[%emt 0:00:31]} f5 {[%emt 0:00:23]} 48. Kh3 {[%emt 0:00:21]} Kg6 {[%emt 0:00:08]} 49. Qe3 {[%emt 0:00:34]} Re4 {[%emt 0:00:03]} 50. Qg3+ {[%emt 0:00:12]} Kh7 {[%emt 0:00:02]} 51. Qg5 {[%emt 0:00:29]} Rg4 {[%emt 0:00:27]} 52. Qf6 {[%emt 0:00:04]} Rg6 {[%emt 0:00:07]} 53. Qe7 {[%emt 0:00:22]} Bg8 {[%emt 0:00:04]} 54. Kh2 {[%emt 0:00:18]} Rxg7 {[%emt 0:00:07]} 55. Qh4+ {[%emt 0:00:01]} Kg6 {[%emt 0:00:02]} 56. Qg3+ {[%emt 0:00:03]} Kf6 {[%emt 0:00:05]} 57. Qd6+ {[%emt 0:00:05]} Be6 {[%emt 0:00:02]} 58. Qd8+ {[%emt 0:00:11]} Kg6 {[%emt 0:00:02]} 59. Qd6 {[%emt 0:00:07]} Kf6 {[%emt 0:00:04]} 60. Qd8+ {[%emt 0:00:00]} Re7 {[%emt 0:00:09]} 61. Qf8+ {[%emt 0:00:18]} Rf7 {[%emt 0:00:05]} 62. Qd8+ {[%emt 0:00:04]} Kg7 {[%emt 0:00:02]} 63. Qg5+ {[%emt 0:00:02]} Kh8 {[%emt 0:00:04]} 64. Qd8+ {[%emt 0:00:02]} Kg7 {[%emt 0:00:03]} 65. Qg5+ {[%emt 0:00:01]} Kh7 {[%emt 0:00:03]} 66. Qh5+ {[%emt 0:00:02]} Kg8 {[%emt 0:00:01]} 67. Qg6+ {[%emt 0:00:04]} Rg7 {[%emt 0:00:05]} 68. Qxe6+ {[%emt 0:00:01]} 1-0

[Event "Skalica Rapid 2020"]
[Site "Skalica"]
[Date "2020.08.29"]
[Round "5.5"]
[White "Sperat Czar, Nicolas"]
[Black "Romanova, Ela"]
[Result "1/2-1/2"]
[ECO "B34"]
[WhiteElo "1737"]
[BlackElo "1529"]
[Annotator "NA"]
[PlyCount "80"]
[EventDate "2020.08.29"]
[EventType "swiss"]
[EventCountry "SVK"]
[SourceTitle "playchess.com"]
[Source "ChessBase"]
[SourceQuality "1"]
[TimeControl "600+5"]

1. e4 {[%emt 0:00:00]} c5 {[%emt 0:00:00]} 2. Nf3 {[%emt 0:00:03]} Nc6 {[%emt 0:00:00]} 3. d4 {[%emt 0:00:01]} cxd4 {[%emt 0:00:00]} 4. Nxd4 {[%emt 0:00:07]} g6 {[%emt 0:00:00]} 5. Nc3 {[%emt 0:00:07]} Bg7 {[%emt 0:00:01]} 6. Be3 {[%emt 0:00:03]} Nf6 {[%emt 0:00:07]} 7. Qd2 {[%emt 0:00:31]} O-O {[%emt 0:00:42]} 8. f3 {[%emt 0:00:06]} d5 {[%emt 0:00:10]} 9. Nxc6 {[%emt 0:00:16]} bxc6 {[%emt 0:00:16]} 10. Be2 {[%emt 0:00:58]} Bb7 {[%emt 0:00:19]} 11. O-O {[%emt 0:00:22]} dxe4 {[%emt 0:00:24]} 12. Qxd8 {[%emt 0:00:20]} Rfxd8 {[%emt 0:00:02]} 13. Nxe4 {[%emt 0:00:21]} Nxe4 {[%emt 0:00:06]} 14. fxe4 {[%emt 0:00:02]} a5 {[%emt 0:00:21]} 15. Rad1 {[%emt 0:00:48]} e6 {[%emt 0:00:58]} 16. Bb6 {[%emt 0:00:23]} Rxd1 {[%emt 0:00:18]} 17. Rxd1 {[%emt 0:00:06]} c5 {[%emt 0:00:15]} 18. Bf3 {[%emt 0:00:29]} Bxb2 {[%emt 0:02:30]} 19. Rd7 {[%emt 0:00:32]} Bd4+ {[%emt 0:01:01]} 20. Kh1 {[%emt 0:00:16]} Bc8 {[%emt 0:00:23]} 21. Rc7 {[%emt 0:00:14]} Rb8 {[%emt 0:00:07]} 22. g3 {[%emt 0:00:19]} Rxb6 {[%emt 0:00:36]} 23. Rxc8+ {[%emt 0:00:02]} Kg7 {[%emt 0:00:02]} 24. Ra8 {[%emt 0:00:40]} Bc3 {[%emt 0:00:26]} 25. Be2 {[%emt 0:00:45]} Rb2 {[%emt 0:00:17]} 26. Bd3 {[%emt 0:01:14]} Rxa2 {[%emt 0:00:13]} 27. Kg1 {[%emt 0:00:23]} c4 {[%emt 0:00:30]} 28. Bxc4 {[%emt 0:00:09]} Rxc2 {[%emt 0:00:03]} 29. Bb5 {[%emt 0:00:20]} Rb2 {[%emt 0:01:36]} 30. Ba4 {[%emt 0:00:41]} Rb4 {[%emt 0:00:06]} 31. Bc6 {[%emt 0:00:03]} Rc4 {[%emt 0:00:04]} 32. Be8 {[%emt 0:00:36]} Rxe4 {[%emt 0:00:08]} 33. Kg2 {[%emt 0:00:06]} Kf6 {[%emt 0:00:25]} 34. Ra7 {[%emt 0:00:09]} Ke5 {[%emt 0:00:08]} 35. Rxf7 {[%emt 0:00:30]} a4 {[%emt 0:00:03]} 36. Ra7 {[%emt 0:00:37]} Bb2 {[%emt 0:00:14]} 37. Rxa4 {[%emt 0:00:07]} Rxa4 {[%emt 0:00:02]} 38. Bxa4 {[%emt 0:00:02]} Kd4 {[%emt 0:00:03]} 39. Kf3 {[%emt 0:00:15]} e5 {[%emt 0:00:03]} 40. Bc2 {[%emt 0:00:06]} Bc3 {[%emt 0:00:00]} 1/2-1/2

[Event "Skalica Rapid 2020"]
[Site "Skalica"]
[Date "2020.08.29"]
[Round "5.7"]
[White "Krupa Miroslav"]
[Black "Abel, Peter"]
[Result "1-0"]
[ECO "B04"]
[WhiteElo "1816"]
[BlackElo "2200"]
[Annotator "ChessBase"]
[PlyCount "125"]
[EventDate "2020.08.29"]
[EventType "swiss"]
[EventCountry "SVK"]
[SourceTitle "playchess.com"]
[Source "ChessBase"]
[SourceQuality "1"]
[TimeControl "600+5"]

1. e4 {[%emt 0:00:00]} Nf6 {[%emt 0:01:22]} 2. e5 {[%emt 0:00:00]} Nd5 {[%emt 0:00:03]} 3. d4 {[%emt 0:00:01]} d6 {[%emt 0:00:03]} 4. c4 {[%emt 0:00:03]} Nb6 {[%emt 0:00:03]} 5. exd6 {[%emt 0:00:02]} cxd6 {[%emt 0:00:01]} 6. Nc3 {[%emt 0:00:02]} g6 {[%emt 0:00:05]} 7. h3 {[%emt 0:00:06]} Bg7 {[%emt 0:00:00]} 8. Nf3 {[%emt 0:00:01]} O-O {[%emt 0:00:00]} 9. Be2 {[%emt 0:00:16]} Bf5 {[%emt 0:01:00]} 10. O-O {[%emt 0:00:02]} d5 {[%emt 0:00:12]} 11. c5 {[%emt 0:00:16]} Nc4 {[%emt 0:00:14]} 12. b3 {[%emt 0:00:25]} Na5 {[%emt 0:00:07]} 13. Bf4 {[%emt 0:00:38]} Nbc6 {[%emt 0:00:11]} 14. Qd2 {[%emt 0:00:23]} Re8 {[%emt 0:00:23]} 15. Bb5 {[%emt 0:00:20]} Rc8 {[%emt 0:00:27]} 16. Rfe1 {[%emt 0:00:12]} h5 {[%emt 0:01:52]} 17. Rad1 {[%emt 0:02:53]} Rf8 {[%emt 0:00:33]} 18. Bh6 {[%emt 0:00:16]} b6 {[%emt 0:00:37]} 19. Bxg7 {[%emt 0:00:22]} Kxg7 {[%emt 0:00:02]} 20. cxb6 {[%emt 0:01:09]} axb6 {[%emt 0:00:08]} 21. Bf1 {[%emt 0:00:49]} Re8 {[%emt 0:00:36]} 22. Nh4 {[%emt 0:00:22]} Bd7 {[%emt 0:00:24]} 23. Nxd5 {[%emt 0:00:44]} e6 {[%emt 0:00:02]} 24. Nc3 {[%emt 0:01:23]} Qxh4 {[%emt 0:00:14]} 25. Ne4 {[%emt 0:00:14]} Red8 {[%emt 0:00:38]} 26. Nd6 {[%emt 0:00:42]} Rb8 {[%emt 0:00:10]} 27. Qb2 {[%emt 0:00:10]} Kg8 {[%emt 0:01:17]} 28. Ne4 {[%emt 0:00:02]} Rf8 {[%emt 0:01:05]} 29. d5 {[%emt 0:00:08]} e5 {[%emt 0:00:17]} 30. dxc6 {[%emt 0:00:04]} Bxc6 {[%emt 0:00:06]} 31. Qxe5 {[%emt 0:00:05]} Bxe4 {[%emt 0:00:00]} 32. Rxe4 {[%emt 0:00:10]} Nc6 {[%emt 0:00:05]} 33. Rxh4 {[%emt 0:00:13]} Nxe5 {[%emt 0:00:00]} 34. Rd5 {[%emt 0:00:04]} Nc6 {[%emt 0:00:01]} 35. Rd6 {[%emt 0:00:04]} Ne7 {[%emt 0:00:03]} 36. Rb4 {[%emt 0:00:03]} Rfc8 {[%emt 0:00:04]} 37. Rdxb6 {[%emt 0:00:03]} Rxb6 {[%emt 0:00:00]} 38. Rxb6 {[%emt 0:00:01]} Nd5 {[%emt 0:00:05]} 39. Rb7 {[%emt 0:00:03]} Nc7 {[%emt 0:00:17]} 40. Bc4 {[%emt 0:00:01]} Kg7 {[%emt 0:00:04]} 41. a4 {[%emt 0:00:01]} Kf6 {[%emt 0:00:01]} 42. a5 {[%emt 0:00:01]} Ne8 {[%emt 0:00:05]} 43. Rxf7+ {[%emt 0:00:02]} Ke5 {[%emt 0:00:01]} 44. Re7+ {[%emt 0:00:03]} Kd4 {[%emt 0:00:01]} 45. Rb7 {[%emt 0:00:07]} Nd6 {[%emt 0:00:02]} 46. Rd7 {[%emt 0:00:01]} Kc5 {[%emt 0:00:00]} 47. Be6 {[%emt 0:00:37]} Ra8 {[%emt 0:00:09]} 48. b4+ {[%emt 0:00:03]} Kc6 {[%emt 0:00:01]} 49. Rg7 {[%emt 0:00:04]} Rb8 {[%emt 0:00:02]} 50. Rxg6 {[%emt 0:00:02]} Rxb4 {[%emt 0:00:05]} 51. Rh6 {[%emt 0:00:03]} Rb5 {[%emt 0:00:00]} 52. a6 {[%emt 0:00:02]} Ra5 {[%emt 0:00:00]} 53. Bf7 {[%emt 0:00:09]} Rxa6 {[%emt 0:00:05]} 54. Bxh5 {[%emt 0:00:01]} Ra3 {[%emt 0:00:03]} 55. Bf3+ {[%emt 0:00:03]} Kc5 {[%emt 0:00:01]} 56. h4 {[%emt 0:00:06]} Nf7 {[%emt 0:00:03]} 57. Rf6 {[%emt 0:00:03]} Ne5 {[%emt 0:00:04]} 58. h5 {[%emt 0:00:08]} Nd7 {[%emt 0:00:07]} 59. Rf5+ {[%emt 0:00:02]} Kc4 {[%emt 0:00:02]} 60. h6 {[%emt 0:00:04]} Ra6 {[%emt 0:00:02]} 61. Rh5 {[%emt 0:00:05]} Ra1+ {[%emt 0:00:08]} 62. Kh2 {[%emt 0:00:02]} Nf6 {[%emt 0:00:05]} 63. h7 {[%emt 0:00:05]} 1-0

[Event "Skalica Rapid 2020"]
[Site "Skalica"]
[Date "2020.08.29"]
[Round "5.7"]
[White "Stos, Radek"]
[Black "Dubanova, Kristina"]
[Result "1-0"]
[ECO "C70"]
[WhiteElo "1790"]
[BlackElo "1128"]
[Annotator "NA"]
[PlyCount "50"]
[EventDate "2020.08.29"]
[EventType "swiss"]
[EventCountry "SVK"]
[SourceTitle "playchess.com"]
[Source "ChessBase"]
[SourceQuality "1"]
[TimeControl "600+5"]

1. e4 {[%emt 0:00:00]} e5 {[%emt 0:00:00]} 2. Nf3 {[%emt 0:00:00]} Nc6 {[%emt 0:00:00]} 3. Bb5 {[%emt 0:00:00]} a6 {[%emt 0:00:00]} 4. Ba4 {[%emt 0:00:01]} b5 {[%emt 0:00:04]} 5. Bb3 {[%emt 0:00:01]} Nf6 {[%emt 0:00:17]} 6. d3 {[%emt 0:00:01]} Bc5 {[%emt 0:00:03]} 7. O-O {[%emt 0:00:04]} h6 {[%emt 0:00:29]} 8. c3 {[%emt 0:00:07]} d6 {[%emt 0:00:15]} 9. h3 {[%emt 0:00:02]} Be6 {[%emt 0:00:06]} 10. Bc2 {[%emt 0:00:02]} d5 {[%emt 0:00:31]} 11. exd5 {[%emt 0:00:08]} Nxd5 {[%emt 0:00:27]} 12. Re1 {[%emt 0:00:11]} Qf6 {[%emt 0:00:29]} 13. d4 {[%emt 0:00:29]} exd4 {[%emt 0:00:38]} 14. c4 {[%emt 0:00:21]} bxc4 {[%emt 0:00:56]} 15. Ba4 {[%emt 0:00:01]} Nde7 {[%emt 0:04:11]} 16. Ne5 {[%emt 0:00:02]} Bd5 {[%emt 0:00:19]} 17. Qg4 {[%emt 0:00:37]} Be6 {[%emt 0:00:37]} 18. Qg3 {[%emt 0:00:10]} Bd5 {[%emt 0:00:14]} 19. Nxc6 {[%emt 0:00:15]} Bxc6 {[%emt 0:00:22]} 20. Bxc6+ {[%emt 0:00:11]} Qxc6 21. Bf4 {[%emt 0:00:28]} Bd6 {[%emt 0:00:28]} 22. Qxg7 {[%emt 0:00:29]} Rg8 {[%emt 0:00:25]} 23. Qxg8+ {[%emt 0:00:04]} Kd7 {[%emt 0:00:13]} 24. Qxf7 {[%emt 0:00:04]} Rb8 {[%emt 0:00:39]} 25. Qe6+ {[%emt 0:00:32]} Kd8 {[%emt 0:00:00]} 1-0